[Event "*** Titled Tuesday Blitz"]
[Site "Chess.com"]
[Date "2020.03.03"]
[Round "3"]
[White "ElGasanov"]
[Black "AntonSmirnov"]
[Result "0-1"]
[WhiteElo "2713"]
[BlackElo "2930"]
[TimeControl "180+1"]
[EndTime "13:31:46 PST"]
[Termination "AntonSmirnov won by resignation"]

1. c4 {[%clk 0:03:00.9]} 1... c6 {[%clk 0:02:57]} 2. Nc3 {[%clk 0:02:57.4]} 2...
d5 {[%clk 0:02:56.8]} 3. d4 {[%clk 0:02:58.1]} 3... dxc4 {[%clk 0:02:56.5]} 4.
Nf3 {[%clk 0:02:55.5]} 4... b5 {[%clk 0:02:55.3]} 5. a4 {[%clk 0:02:54.6]} 5...
b4 {[%clk 0:02:53.1]} 6. Ne4 {[%clk 0:02:55.1]} 6... Nf6 {[%clk 0:02:50.2]} 7.
Ng3 {[%clk 0:02:50.3]} 7... e6 {[%clk 0:02:39.8]} 8. e4 {[%clk 0:02:49.7]} 8...
Ba6 {[%clk 0:02:38.4]} 9. Ne5 {[%clk 0:02:47.8]} 9... c5 {[%clk 0:02:34.3]} 10.
Be3 {[%clk 0:02:45.3]} 10... cxd4 {[%clk 0:02:13.2]} 11. Qxd4 {[%clk 0:02:38.9]}
11... Qxd4 {[%clk 0:02:12.2]} 12. Bxd4 {[%clk 0:02:39.3]} 12... c3 {[%clk
0:02:04.1]} 13. bxc3 {[%clk 0:02:31.6]} 13... Bxf1 {[%clk 0:02:02.2]} 14. Rxf1
{[%clk 0:02:29.6]} 14... a5 {[%clk 0:01:54.7]} 15. Ke2 {[%clk 0:02:23.8]} 15...
Na6 {[%clk 0:01:51.4]} 16. Nc4 {[%clk 0:02:09.5]} 16... bxc3 {[%clk 0:01:45.6]}
17. Rac1 {[%clk 0:01:59.7]} 17... Bb4 {[%clk 0:01:29.6]} 18. Bxc3 {[%clk
0:02:00.1]} 18... O-O {[%clk 0:00:53.3]} 19. Nxa5 {[%clk 0:01:57.8]} 19... Bxc3
{[%clk 0:00:51.5]} 20. Rxc3 {[%clk 0:01:57.1]} 20... Nb8 {[%clk 0:00:51.3]} 21.
Rc5 {[%clk 0:01:50.5]} 21... Nbd7 {[%clk 0:00:51.4]} 22. Rb5 {[%clk 0:01:50.6]}
22... Rfc8 {[%clk 0:00:51.1]} 23. Rd1 {[%clk 0:01:44.8]} 23... Nc5 {[%clk
0:00:49.6]} 24. Rd4 {[%clk 0:01:26.3]} 24... e5 {[%clk 0:00:42.3]} 25. Rc4
{[%clk 0:01:19.9]} 25... Ne6 {[%clk 0:00:42.3]} 26. Rxe5 {[%clk 0:01:11.1]}
26... Nd7 {[%clk 0:00:40.6]} 27. Rxc8+ {[%clk 0:00:31.9]} 27... Rxc8 {[%clk
0:00:41.5]} 28. Rb5 {[%clk 0:00:31.3]} 28... Nd4+ {[%clk 0:00:38.8]} 29. Kd3
{[%clk 0:00:31.8]} 29... Nxb5 {[%clk 0:00:38.6]} 30. axb5 {[%clk 0:00:32.5]}
30... Rc5 {[%clk 0:00:38.6]} 31. Nc6 {[%clk 0:00:28.8]} 31... Rxb5 {[%clk
0:00:35.6]} 32. Nf5 {[%clk 0:00:29.3]} 32... Ne5+ {[%clk 0:00:34.4]} 33. Nxe5
{[%clk 0:00:27.6]} 33... Rxe5 {[%clk 0:00:35.3]} 34. h4 {[%clk 0:00:27.1]} 34...
g6 {[%clk 0:00:34.9]} 35. Nd4 {[%clk 0:00:25.9]} 35... Ra5 {[%clk 0:00:33.6]}
36. Ke3 {[%clk 0:00:26]} 36... Kg7 {[%clk 0:00:33.1]} 37. g3 {[%clk 0:00:26]}
37... Ra4 {[%clk 0:00:29.4]} 38. Nc6 {[%clk 0:00:24.5]} 38... Kf6 {[%clk
0:00:28.7]} 39. Nd4 {[%clk 0:00:23.6]} 39... Ke5 {[%clk 0:00:28.1]} 40. Nf3+
{[%clk 0:00:23.7]} 40... Kf6 {[%clk 0:00:27.4]} 41. Kf4 {[%clk 0:00:24]} 41...
h6 {[%clk 0:00:26.8]} 42. Ke3 {[%clk 0:00:23.7]} 42... Ke6 {[%clk 0:00:26.4]}
43. Kf4 {[%clk 0:00:23.5]} 43... Rb4 {[%clk 0:00:13.6]} 44. Ke3 {[%clk
0:00:22.9]} 44... Rc4 {[%clk 0:00:12.7]} 45. Nd4+ {[%clk 0:00:22.8]} 45... Kd6
{[%clk 0:00:12]} 46. Nf3 {[%clk 0:00:22.9]} 46... Ra4 {[%clk 0:00:12.2]} 47. Nd4
{[%clk 0:00:20.6]} 47... Ke5 {[%clk 0:00:12]} 48. Nf3+ {[%clk 0:00:20.8]} 48...
Ke6 {[%clk 0:00:12.3]} 49. Nd4+ {[%clk 0:00:21.1]} 49... Kd6 {[%clk 0:00:12.7]}
50. Nf3 {[%clk 0:00:20.8]} 50... f5 {[%clk 0:00:13]} 51. exf5 {[%clk 0:00:19.2]}
51... gxf5 {[%clk 0:00:13.4]} 52. Nd4 {[%clk 0:00:18.9]} 52... Ke5 {[%clk
0:00:13.8]} 53. Nf3+ {[%clk 0:00:18.6]} 53... Kf6 {[%clk 0:00:13.3]} 54. Nd4
{[%clk 0:00:18.2]} 54... Rb4 {[%clk 0:00:13.3]} 55. Ne2 {[%clk 0:00:18.3]} 55...
Re4+ {[%clk 0:00:13.5]} 56. Kf3 {[%clk 0:00:18.4]} 56... Ke5 {[%clk 0:00:14.2]}
57. Ng1 {[%clk 0:00:16.4]} 57... Ra4 {[%clk 0:00:14.2]} 58. Ne2 {[%clk
0:00:16.4]} 58... Ra3+ {[%clk 0:00:14.4]} 59. Kg2 {[%clk 0:00:15.8]} 59... Ke4
{[%clk 0:00:14.9]} 60. Nf4 {[%clk 0:00:15.9]} 60... Ra2 {[%clk 0:00:15.2]} 61.
Nh3 {[%clk 0:00:15.8]} 61... Ke5 {[%clk 0:00:14.8]} 62. Nf4 {[%clk 0:00:16.1]}
62... Ra3 {[%clk 0:00:15.2]} 63. Ne2 {[%clk 0:00:15.4]} 63... Ra4 {[%clk
0:00:15.5]} 64. Nf4 {[%clk 0:00:14.8]} 64... Rxf4 {[%clk 0:00:15.4]} 65. gxf4+
{[%clk 0:00:15]} 65... Kxf4 {[%clk 0:00:16.3]} 66. f3 {[%clk 0:00:09.7]} 66...
Ke3 {[%clk 0:00:16.4]} 67. Kg3 {[%clk 0:00:06.5]} 67... h5 {[%clk 0:00:16.5]}
68. Kg2 {[%clk 0:00:02.9]} 68... f4 {[%clk 0:00:16.8]} 0-1

[Event "*** Titled Tuesday Blitz"]
[Site "Chess.com"]
[Date "2020.03.03"]
[Round "3"]
[White "INLOVEWITHF"]
[Black "BeanScreen"]
[Result "0-1"]
[WhiteElo "2424"]
[BlackElo "2650"]
[TimeControl "180+1"]
[EndTime "13:31:50 PST"]
[Termination "BeanScreen won by resignation"]

1. d4 {[%clk 0:03:00.9]} 1... d5 {[%clk 0:02:59.8]} 2. c4 {[%clk 0:03:00.1]}
2... dxc4 {[%clk 0:03:00.7]} 3. e3 {[%clk 0:02:58.1]} 3... e5 {[%clk 0:03:00.8]}
4. Nf3 {[%clk 0:02:55.5]} 4... Nc6 {[%clk 0:02:52.2]} 5. d5 {[%clk 0:02:49.7]}
5... Bb4+ {[%clk 0:02:52.2]} 6. Nc3 {[%clk 0:02:46.3]} 6... Bxc3+ {[%clk
0:02:46.8]} 7. bxc3 {[%clk 0:02:46]} 7... e4 {[%clk 0:02:42.4]} 8. dxc6 {[%clk
0:02:43.1]} 8... Qxd1+ {[%clk 0:02:42]} 9. Kxd1 {[%clk 0:02:44]} 9... exf3
{[%clk 0:02:42.4]} 10. gxf3 {[%clk 0:02:39.5]} 10... b5 {[%clk 0:02:41.7]} 11.
a4 {[%clk 0:02:39.1]} 11... Ba6 {[%clk 0:02:36.4]} 12. axb5 {[%clk 0:02:35.5]}
12... Bxb5 {[%clk 0:02:37.3]} 13. e4 {[%clk 0:02:25.1]} 13... Ne7 {[%clk
0:02:29]} 14. Ra5 {[%clk 0:02:22.1]} 14... a6 {[%clk 0:02:25.8]} 15. Be3 {[%clk
0:02:17]} 15... Nxc6 {[%clk 0:02:24.5]} 16. Ra2 {[%clk 0:02:17.7]} 16... O-O-O+
{[%clk 0:02:22.2]} 17. Kc1 {[%clk 0:02:13.7]} 17... Ne5 {[%clk 0:02:20.9]} 18.
Be2 {[%clk 0:02:12.8]} 18... Rhe8 {[%clk 0:02:18.7]} 19. f4 {[%clk 0:02:05]}
19... Nd3+ {[%clk 0:02:16]} 20. Bxd3 {[%clk 0:02:02]} 20... Rxd3 {[%clk
0:02:14.2]} 21. Bd4 {[%clk 0:01:52.6]} 21... f6 {[%clk 0:01:49.2]} 22. Re1
{[%clk 0:01:48.4]} 22... c5 {[%clk 0:01:46.1]} 23. Bxc5 {[%clk 0:01:45.8]} 23...
Rxc3+ {[%clk 0:01:46.5]} 24. Kd2 {[%clk 0:01:44.3]} 24... Rd3+ {[%clk
0:01:43.2]} 25. Kc2 {[%clk 0:01:44.7]} 25... Red8 {[%clk 0:01:34.9]} 26. Be3
{[%clk 0:01:37.8]} 26... Kb7 {[%clk 0:01:00.9]} 27. Rg1 {[%clk 0:01:30.9]} 27...
g6 {[%clk 0:00:59.5]} 28. e5 {[%clk 0:01:29.6]} 28... fxe5 {[%clk 0:00:45.5]}
29. fxe5 {[%clk 0:01:30.5]} 29... Re8 {[%clk 0:00:44.2]} 30. Rg5 {[%clk
0:01:28.3]} 30... Bc6 {[%clk 0:00:40.3]} 31. Rb2+ {[%clk 0:01:25.7]} 31... Kc8
{[%clk 0:00:39.3]} 32. Rb4 {[%clk 0:01:18.7]} 32... Bd5 {[%clk 0:00:34.3]} 33.
Ra4 {[%clk 0:01:15.2]} 33... Re6 {[%clk 0:00:33.9]} 34. h4 {[%clk 0:01:13.3]}
34... Rc6 {[%clk 0:00:32]} 35. h5 {[%clk 0:01:05.3]} 35... Be4 {[%clk
0:00:31.5]} 36. Kc1 {[%clk 0:00:54.4]} 36... Rb3 {[%clk 0:00:27]} 37. Ra1 {[%clk
0:00:47.3]} 37... a5 {[%clk 0:00:24.1]} 38. hxg6 {[%clk 0:00:46.4]} 38... hxg6
{[%clk 0:00:25]} 39. Rg4 {[%clk 0:00:45.3]} 39... Bf5 {[%clk 0:00:24.2]} 40. Rd4
{[%clk 0:00:44.3]} 40... a4 {[%clk 0:00:24]} 41. Rxa4 {[%clk 0:00:03.6]} 41...
Rb1+ {[%clk 0:00:23.1]} 42. Kd2 {[%clk 0:00:04.1]} 42... c3+ {[%clk 0:00:23.2]}
43. Ke2 {[%clk 0:00:04.8]} 43... c2 {[%clk 0:00:21.9]} 44. Rac4 {[%clk
0:00:05.3]} 44... c1=Q {[%clk 0:00:18.7]} 45. Bxc1 {[%clk 0:00:04.8]} 45... Rxc1
{[%clk 0:00:18.7]} 46. Rxc6+ {[%clk 0:00:04.7]} 46... Rxc6 {[%clk 0:00:19.6]}
47. Ke3 {[%clk 0:00:04.8]} 47... Rc7 {[%clk 0:00:18.7]} 48. Kf4 {[%clk
0:00:04.6]} 48... Rd7 {[%clk 0:00:19.1]} 49. Rc4+ {[%clk 0:00:03.8]} 49... Kd8
{[%clk 0:00:19.5]} 50. Kg5 {[%clk 0:00:04.2]} 50... Ke7 {[%clk 0:00:19.6]} 51.
f4 {[%clk 0:00:04.5]} 51... Rd1 {[%clk 0:00:18]} 52. Rb4 {[%clk 0:00:03.2]}
52... Rh1 {[%clk 0:00:16.7]} 53. Rb7+ {[%clk 0:00:01.9]} 53... Ke6 {[%clk
0:00:17.3]} 54. Rb6+ {[%clk 0:00:02.2]} 54... Kd5 {[%clk 0:00:17.8]} 55. Kf6
{[%clk 0:00:01.9]} 55... Rf1 {[%clk 0:00:16.7]} 56. Rd6+ {[%clk 0:00:02.8]}
56... Kc5 {[%clk 0:00:16.7]} 57. Rd2 {[%clk 0:00:02.7]} 57... Rxf4 {[%clk
0:00:16.4]} 58. Kg5 {[%clk 0:00:03.6]} 58... Re4 {[%clk 0:00:16.6]} 59. Rb2
{[%clk 0:00:03.6]} 59... Rxe5 {[%clk 0:00:16.5]} 60. Rf2 {[%clk 0:00:03.9]}
60... Bd3+ {[%clk 0:00:16]} 61. Kf6 {[%clk 0:00:04.8]} 61... Rf5+ {[%clk
0:00:16.2]} 62. Rxf5+ {[%clk 0:00:04.3]} 62... gxf5 {[%clk 0:00:17.1]} 63. Ke5
{[%clk 0:00:03.4]} 63... Kc4 {[%clk 0:00:16.9]} 64. Kf4 {[%clk 0:00:03.6]} 64...
Kd4 {[%clk 0:00:17.4]} 0-1

[Event "*** Titled Tuesday Blitz"]
[Site "Chess.com"]
[Date "2020.03.03"]
[Round "3"]
[White "Imre91"]
[Black "Micki-taryan"]
[Result "1-0"]
[WhiteElo "2748"]
[BlackElo "2989"]
[TimeControl "180+1"]
[EndTime "13:31:55 PST"]
[Termination "Imre91 won by checkmate"]

1. d4 {[%clk 0:03:00.9]} 1... Nf6 {[%clk 0:03:00.3]} 2. Nf3 {[%clk 0:03:00.7]}
2... e6 {[%clk 0:03:01.2]} 3. Bf4 {[%clk 0:02:54.3]} 3... b6 {[%clk 0:03:01.5]}
4. e3 {[%clk 0:02:53.9]} 4... Bb7 {[%clk 0:03:02.4]} 5. Bd3 {[%clk 0:02:53.4]}
5... Bd6 {[%clk 0:03:03]} 6. Bg3 {[%clk 0:02:52.8]} 6... O-O {[%clk 0:03:02.4]}
7. Nbd2 {[%clk 0:02:52.7]} 7... Nc6 {[%clk 0:03:02.1]} 8. c3 {[%clk 0:02:52.4]}
8... Ne7 {[%clk 0:03:01.4]} 9. Qc2 {[%clk 0:02:50.3]} 9... Ng6 {[%clk
0:02:59.3]} 10. O-O {[%clk 0:02:47.9]} 10... Bxg3 {[%clk 0:02:58.8]} 11. hxg3
{[%clk 0:02:47.9]} 11... d6 {[%clk 0:02:59.2]} 12. Rad1 {[%clk 0:02:46.8]} 12...
Qe7 {[%clk 0:02:59.3]} 13. a4 {[%clk 0:02:46.3]} 13... e5 {[%clk 0:02:58.4]} 14.
dxe5 {[%clk 0:02:43.8]} 14... Nxe5 {[%clk 0:02:57.1]} 15. a5 {[%clk 0:02:41.7]}
15... Nxd3 {[%clk 0:02:55.6]} 16. Qxd3 {[%clk 0:02:41.3]} 16... Rfe8 {[%clk
0:02:53.4]} 17. Ra1 {[%clk 0:02:40.1]} 17... g6 {[%clk 0:02:49.1]} 18. Rfd1
{[%clk 0:02:37.7]} 18... Rab8 {[%clk 0:02:37.5]} 19. Qd4 {[%clk 0:02:35.9]}
19... Nd7 {[%clk 0:02:35.3]} 20. axb6 {[%clk 0:02:25]} 20... axb6 {[%clk
0:02:36.2]} 21. Ra7 {[%clk 0:02:24.8]} 21... Nc5 {[%clk 0:02:30.7]} 22. Rda1
{[%clk 0:02:21]} 22... Ra8 {[%clk 0:02:25.2]} 23. b4 {[%clk 0:02:19.2]} 23...
Ne6 {[%clk 0:02:21.1]} 24. Qc4 {[%clk 0:02:13.7]} 24... Rxa7 {[%clk 0:02:21]}
25. Rxa7 {[%clk 0:02:13.1]} 25... Rb8 {[%clk 0:02:21.9]} 26. Qa2 {[%clk
0:02:10.7]} 26... Kg7 {[%clk 0:02:20]} 27. Nd4 {[%clk 0:02:10.2]} 27... Nd8
{[%clk 0:02:17.4]} 28. b5 {[%clk 0:02:07.6]} 28... Qe5 {[%clk 0:02:14.8]} 29. c4
{[%clk 0:02:06.5]} 29... h6 {[%clk 0:02:13.2]} 30. Qa1 {[%clk 0:02:06.2]} 30...
Kh7 {[%clk 0:02:12.4]} 31. N2f3 {[%clk 0:01:59.7]} 31... Qe4 {[%clk 0:02:11.5]}
32. Qc3 {[%clk 0:01:51.8]} 32... Ra8 {[%clk 0:02:05.6]} 33. Rxa8 {[%clk
0:01:51.6]} 33... Bxa8 {[%clk 0:02:06.5]} 34. Ne2 {[%clk 0:01:50]} 34... Qb1+
{[%clk 0:01:59.8]} 35. Kh2 {[%clk 0:01:48.8]} 35... Qf5 {[%clk 0:02:00.4]} 36.
Ned4 {[%clk 0:01:44]} 36... Qe4 {[%clk 0:01:58.6]} 37. Qa3 {[%clk 0:01:41.1]}
37... Kg8 {[%clk 0:01:52.4]} 38. Qa7 {[%clk 0:01:40.4]} 38... Qb7 {[%clk
0:01:53]} 39. Qa1 {[%clk 0:01:39.5]} 39... Qe4 {[%clk 0:01:48.2]} 40. Qa7 {[%clk
0:01:38.9]} 40... Qb7 {[%clk 0:01:48.3]} 41. Qa1 {[%clk 0:01:37.7]} 41... Kh7
{[%clk 0:01:42.9]} 42. g4 {[%clk 0:01:30.4]} 42... Qe4 {[%clk 0:01:40.8]} 43.
Qa7 {[%clk 0:01:28.9]} 43... Bb7 {[%clk 0:01:38.6]} 44. Qb8 {[%clk 0:01:28.5]}
44... Qe7 {[%clk 0:01:37.2]} 45. Kg1 {[%clk 0:01:24.6]} 45... Qd7 {[%clk
0:01:37.1]} 46. g5 {[%clk 0:01:23.8]} 46... hxg5 {[%clk 0:01:35.2]} 47. Nxg5+
{[%clk 0:01:23.9]} 47... Kg7 {[%clk 0:01:35.9]} 48. Qa7 {[%clk 0:01:03.4]} 48...
Kg8 {[%clk 0:01:22.5]} 49. Ngf3 {[%clk 0:01:01.8]} 49... Qc8 {[%clk 0:01:21.1]}
50. Qa1 {[%clk 0:01:00.5]} 50... Qa8 {[%clk 0:01:21.6]} 51. Qc3 {[%clk
0:01:00.4]} 51... Qa2 {[%clk 0:01:21.2]} 52. Ng5 {[%clk 0:00:57]} 52... Qb1+
{[%clk 0:01:15.7]} 53. Kh2 {[%clk 0:00:57.1]} 53... Qf1 {[%clk 0:01:16.2]} 54.
Ndf3 {[%clk 0:00:55.5]} 54... Bxf3 {[%clk 0:01:08.1]} 55. Nxf3 {[%clk
0:00:53.4]} 55... Ne6 {[%clk 0:01:08.4]} 56. Qc2 {[%clk 0:00:48.4]} 56... Qa1
{[%clk 0:01:08.1]} 57. Qe4 {[%clk 0:00:44.6]} 57... Qh8+ {[%clk 0:01:07.2]} 58.
Kg1 {[%clk 0:00:44]} 58... Qa1+ {[%clk 0:01:08.1]} 59. Kh2 {[%clk 0:00:44.5]}
59... Kg7 {[%clk 0:01:08.7]} 60. Nd4 {[%clk 0:00:42.7]} 60... Nc5 {[%clk
0:01:03.5]} 61. Qe7 {[%clk 0:00:42.6]} 61... Qf1 {[%clk 0:01:02.3]} 62. Qxc7
{[%clk 0:00:40.4]} 62... Qxf2 {[%clk 0:01:00.5]} 63. Qxd6 {[%clk 0:00:40.9]}
63... Qh4+ {[%clk 0:00:59]} 64. Kg1 {[%clk 0:00:40.1]} 64... Qe1+ {[%clk
0:00:58.5]} 65. Kh2 {[%clk 0:00:40.6]} 65... Qxe3 {[%clk 0:00:59.3]} 66. Nf3
{[%clk 0:00:39]} 66... Qh6+ {[%clk 0:00:58.1]} 67. Kg1 {[%clk 0:00:38]} 67...
Qc1+ {[%clk 0:00:56.9]} 68. Kh2 {[%clk 0:00:38.5]} 68... Qxc4 {[%clk 0:00:57.8]}
69. Qxb6 {[%clk 0:00:38.4]} 69... Qf4+ {[%clk 0:00:57.6]} 70. Kg1 {[%clk
0:00:37.9]} 70... Qe3+ {[%clk 0:00:52.2]} 71. Kh2 {[%clk 0:00:38.1]} 71... Qf4+
{[%clk 0:00:51.9]} 72. Kg1 {[%clk 0:00:38.5]} 72... Ne6 {[%clk 0:00:45.9]} 73.
Qc6 {[%clk 0:00:36.7]} 73... Qe3+ {[%clk 0:00:46.2]} 74. Kh2 {[%clk 0:00:37]}
74... Qh6+ {[%clk 0:00:43.7]} 75. Kg1 {[%clk 0:00:37.1]} 75... Qe3+ {[%clk
0:00:44.3]} 76. Kh2 {[%clk 0:00:37.7]} 76... Nf4 {[%clk 0:00:43.9]} 77. Qd6
{[%clk 0:00:37]} 77... Kh7 {[%clk 0:00:20.6]} 78. Qf6 {[%clk 0:00:29]} 78... Ne6
{[%clk 0:00:05.1]} 79. Qxf7+ {[%clk 0:00:27.5]} 79... Kh6 {[%clk 0:00:05.7]} 80.
Qf6 {[%clk 0:00:24.5]} 80... Qb6 {[%clk 0:00:01.6]} 81. Qh8# {[%clk 0:00:23.8]}
1-0

[Event "*** Titled Tuesday Blitz"]
[Site "Chess.com"]
[Date "2020.03.03"]
[Round "3"]
[White "GrandGlacier"]
[Black "aquaticpineapples"]
[Result "1/2-1/2"]
[WhiteElo "2552"]
[BlackElo "2260"]
[TimeControl "180+1"]
[EndTime "13:31:58 PST"]
[Termination "Game drawn by repetition"]

1. e4 {[%clk 0:03:00.9]} 1... e6 {[%clk 0:02:57]} 2. d4 {[%clk 0:03:00.1]} 2...
d5 {[%clk 0:02:57.7]} 3. Nd2 {[%clk 0:02:58.4]} 3... Nf6 {[%clk 0:02:57.5]} 4.
e5 {[%clk 0:02:58.1]} 4... Nfd7 {[%clk 0:02:58.2]} 5. Bd3 {[%clk 0:02:57.9]}
5... c5 {[%clk 0:02:58.9]} 6. c3 {[%clk 0:02:58.2]} 6... Nc6 {[%clk 0:02:59.6]}
7. Ne2 {[%clk 0:02:58.5]} 7... cxd4 {[%clk 0:02:59.3]} 8. cxd4 {[%clk
0:02:58.3]} 8... f6 {[%clk 0:03:00]} 9. exf6 {[%clk 0:02:57.5]} 9... Qxf6 {[%clk
0:03:00.4]} 10. Nf3 {[%clk 0:02:57.4]} 10... h6 {[%clk 0:03:00.5]} 11. Nf4
{[%clk 0:02:52.8]} 11... Bb4+ {[%clk 0:02:52.2]} 12. Kf1 {[%clk 0:02:49.5]}
12... O-O {[%clk 0:02:49]} 13. Qc2 {[%clk 0:02:41.7]} 13... Rd8 {[%clk
0:02:24.9]} 14. Be3 {[%clk 0:02:19]} 14... Nf8 {[%clk 0:02:09.1]} 15. h4 {[%clk
0:02:15.9]} 15... e5 {[%clk 0:01:53.4]} 16. dxe5 {[%clk 0:02:14.1]} 16... Nxe5
{[%clk 0:01:53.5]} 17. Bd4 {[%clk 0:02:09.8]} 17... Qxf4 {[%clk 0:01:45.8]} 18.
Bxe5 {[%clk 0:02:08.2]} 18... Qf7 {[%clk 0:01:35.9]} 19. h5 {[%clk 0:02:07.5]}
19... Bg4 {[%clk 0:01:30.9]} 20. Nd4 {[%clk 0:01:58.7]} 20... Rac8 {[%clk
0:01:27.1]} 21. Qb3 {[%clk 0:01:49.3]} 21... Bc5 {[%clk 0:01:22.4]} 22. Rh4
{[%clk 0:01:43.8]} 22... Re8 {[%clk 0:01:04.1]} 23. Rxg4 {[%clk 0:01:22.6]}
23... Rxe5 {[%clk 0:01:03.6]} 24. Bg6 {[%clk 0:01:22.7]} 24... Nxg6 {[%clk
0:00:59.9]} 25. hxg6 {[%clk 0:01:21.4]} 25... Qd7 {[%clk 0:00:56.4]} 26. Qg3
{[%clk 0:01:18]} 26... Re4 {[%clk 0:00:50.5]} 27. Rxe4 {[%clk 0:01:07.8]} 27...
dxe4 {[%clk 0:00:51.4]} 28. Ne2 {[%clk 0:01:05.3]} 28... Rf8 {[%clk 0:00:46.3]}
29. Nf4 {[%clk 0:01:03.5]} 29... Qd2 {[%clk 0:00:41.1]} 30. Nh3 {[%clk
0:00:56.1]} 30... Bxf2 {[%clk 0:00:34.4]} 31. Nxf2 {[%clk 0:00:55.3]} 31... e3
{[%clk 0:00:33.7]} 32. Kg1 {[%clk 0:00:52.3]} 32... Rxf2 {[%clk 0:00:28.6]} 33.
Kh2 {[%clk 0:00:32.8]} 33... Rf5 {[%clk 0:00:19.1]} 34. Qb8+ {[%clk 0:00:30]}
34... Rf8 {[%clk 0:00:19.2]} 35. Qg3 {[%clk 0:00:30]} 35... e2 {[%clk
0:00:17.4]} 36. Re1 {[%clk 0:00:23.5]} 36... Qxb2 {[%clk 0:00:14]} 37. Qb3+
{[%clk 0:00:22.8]} 37... Qxb3 {[%clk 0:00:13.7]} 38. axb3 {[%clk 0:00:23.7]}
38... Re8 {[%clk 0:00:14.2]} 39. Kg3 {[%clk 0:00:23.8]} 39... b5 {[%clk
0:00:13.1]} 40. b4 {[%clk 0:00:23.2]} 40... Re4 {[%clk 0:00:12.5]} 41. Kf3
{[%clk 0:00:22.4]} 41... Rxb4 {[%clk 0:00:10.4]} 42. Rxe2 {[%clk 0:00:22.5]}
42... Kf8 {[%clk 0:00:10.7]} 43. Ra2 {[%clk 0:00:21.9]} 43... Ra4 {[%clk
0:00:10.1]} 44. Rc2 {[%clk 0:00:22.1]} 44... Ke7 {[%clk 0:00:10.6]} 45. Rc7+
{[%clk 0:00:20.9]} 45... Kf6 {[%clk 0:00:10.7]} 46. Rc6+ {[%clk 0:00:21.4]}
46... Kf5 {[%clk 0:00:09.6]} 47. Rd6 {[%clk 0:00:18.8]} 47... Ra3+ {[%clk
0:00:09]} 48. Kf2 {[%clk 0:00:19.1]} 48... b4 {[%clk 0:00:09.2]} 49. Rd4 {[%clk
0:00:18]} 49... Kxg6 {[%clk 0:00:08.5]} 50. Rxb4 {[%clk 0:00:17.8]} 50... a5
{[%clk 0:00:08.9]} 51. Rb6+ {[%clk 0:00:17.8]} 51... Kg5 {[%clk 0:00:09]} 52.
Rb5+ {[%clk 0:00:18.1]} 52... Kf4 {[%clk 0:00:09.1]} 53. Rb6 {[%clk 0:00:17.2]}
53... Ra2+ {[%clk 0:00:09.1]} 54. Kg1 {[%clk 0:00:17.3]} 54... a4 {[%clk
0:00:08.7]} 55. Rg6 {[%clk 0:00:15.4]} 55... a3 {[%clk 0:00:07.9]} 56. Rxg7
{[%clk 0:00:15.6]} 56... Ra1+ {[%clk 0:00:08.2]} 57. Kh2 {[%clk 0:00:15]} 57...
Kf5 {[%clk 0:00:07.9]} 58. Ra7 {[%clk 0:00:14.9]} 58... Kg4 {[%clk 0:00:07.9]}
59. Ra4+ {[%clk 0:00:13.7]} 59... Kg5 {[%clk 0:00:08.1]} 60. Kg3 {[%clk
0:00:14.1]} 60... h5 {[%clk 0:00:07.8]} 61. Ra5+ {[%clk 0:00:14.2]} 61... Kg6
{[%clk 0:00:07.9]} 62. Kh4 {[%clk 0:00:13.7]} 62... a2 {[%clk 0:00:06.8]} 63.
Ra6+ {[%clk 0:00:13.4]} 63... Kf5 {[%clk 0:00:07.2]} 64. Kg3 {[%clk 0:00:12.6]}
64... h4+ {[%clk 0:00:06.9]} 65. Kh2 {[%clk 0:00:11.6]} 65... Kg4 {[%clk
0:00:06.1]} 66. Ra4+ {[%clk 0:00:10.7]} 66... Kg5 {[%clk 0:00:06.5]} 67. Ra5+
{[%clk 0:00:10.7]} 67... Kf4 {[%clk 0:00:06.9]} 68. Ra3 {[%clk 0:00:09.7]} 68...
Kg4 {[%clk 0:00:06.1]} 69. Ra4+ {[%clk 0:00:09.5]} 69... Kh5 {[%clk 0:00:06.2]}
70. Ra6 {[%clk 0:00:08.5]} 70... Kg5 {[%clk 0:00:05]} 71. Ra5+ {[%clk
0:00:08.3]} 71... Kg4 {[%clk 0:00:05.3]} 72. Ra4+ {[%clk 0:00:08.4]} 1/2-1/2